Cogmind - Beta 16 @@@ ROGUE MODE // 2026.01.08 @ 13:29:00 Player: Artackni Result: Destroyed by AX-T5K(R) with Subdweller Machine Gun Performance ------------- Evolutions (0) 0 Regions Visited (2) 400 Robots Destroyed (24) 120 Value Destroyed (377) 377 Prototype IDs (0) 0 Alien Tech Used (0) 0 Bonus (0) 0 TOTAL SCORE: 897 Bonus ------- None Cogmind --------- Core Integrity 0/250 Matter 300/300 Energy 100/100 System Corruption 0% Temperature Cool (0) Movement Core (200) Ox3 Location -10/Subcaves Parts ------- > --- POWER (1) -------- (None) > --- PROPULSION (2) --- (None) > --- UTILITY (2) ------ Medium Storage Unit > --- WEAPON (2) ------- (None) > --- INVENTORY (10) --- Light Ion Engine Light Treads Light Treads Wheel Sensor Array Signal Interpreter Improved Terrain Scanner Hacking Suite Datajack Peak State ------------ > --- POWER ------------ Ion Engine > --- PROPULSION ------- Light Treads Compact Wheel > --- UTILITY ---------- Small Storage Unit Seismic Detector > --- WEAPON ----------- EM Pulse Gun Light Assault Rifle > --- INVENTORY -------- Light Ion Engine Light Treads Aluminum Leg Aluminum Leg Compact Wheel Improved Terrain Scanner Light Assault Rifle Mining Laser [Rating: 8] Favorites ----------- Power Ion Engine Engine Ion Engine Propulsion Light Treads Treads Light Treads Wheel Wheel Utility Seismic Detector Device Seismic Detector Storage Medium Storage Unit Weapon Light Assault Rifle Energy Gun EM Pulse Gun Ballistic Gun Light Assault Rifle Impact Weapon Hammer Build | -11 -10 -10 ------- Run | Yrd Mat Sub Slots Evolved . | . . . Power . | . . . Propulsion . | . . . Utility . | . . . Weapon . | . . . Parts Attached 15 | 7 8 . Power 2 | 1 1 . Engine 2 | 1 1 . Core . | . . . Reactor . | . . . Propulsion 5 | 2 3 . Treads 2 | 1 1 . Leg . | . . . Wheel 3 | 1 2 . Hover . | . . . Flight . | . . . Utility 3 | 2 1 . Device 1 | 1 . . Storage 2 | 1 1 . Processor . | . . . Hackware . | . . . Protection . | . . . Artifact . | . . . Weapon 5 | 2 3 . Energy Gun 1 | 1 . . Energy Cannon . | . . . Ballistic Gun 3 | 1 2 . Ballistic Cannon . | . . . Launcher . | . . . Special Weapon . | . . . Impact Weapon 1 | . 1 . Slashing Weapon . | . . . Piercing Weapon . | . . . Special Melee Weapon . | . . . Unidentified Prototypes . | . . . Parts Lost 9 | . 2 7 Power 1 | . . 1 Propulsion 3 | . 1 2 Utility 1 | . . 1 Weapon 4 | . 1 3 Highest Loss Streak 7 | . 1 7 To Critical Strikes . | . . . Average Backups 8 | 6 9 9 Power 1 | . 1 1 Propulsion 3 | 3 3 3 Utility 2 | . 3 4 Weapon 1 | 1 1 . Tool/Special . | . . . Unused Backups 15 | . 6 9 Power 1 | . . 1 Propulsion 5 | . 2 3 Utility 6 | . 2 4 Weapon 2 | . 2 . Tool/Special 1 | . . 1 Average Slot Usage (%) 96 | . 99 75 Engine 13 | . 13 8 Treads 13 | . 14 9 Wheel 13 | . 13 11 Device 13 | . 13 9 Storage 14 | . 14 14 Energy Gun 2 | . 2 . Ballistic Gun 22 | . 23 18 Impact Weapon 2 | . 1 3 Peak Build Rating 8 | 8 8 8 Average Rating 7 | 5 7 6 On Entrance 5 | . 8 8 Avg Prop Armor Cover (%) 13 | 13 13 14 Naked Turns . | . . . Heaviest Build 19 | 14 19 18 Greatest Support 20 | 16 20 16 Greatest Overweight (x) 1 | . 1 1 Average Overweight (x) . | . . . Largest Inventory Capacity 10 | 8 10 10 Average Capacity 9 | 7 9 10 Most Carried 10 | 8 10 10 Average Carried 8 | 6 9 9 Final Capacity 10 | 8 10 10 Final Carried 10 | 8 10 9 Class Distribution -------------------- 61% | Mutant 38% | Scavenger-Mutant Dominant Class ---------------- Scavenger-Mutant | -10/Materials Mutant | -10/Subcaves Resources | -11 -10 -10 ----------- Run | Yrd Mat Sub Matter Collected 529 | 307 221 1 Remotely . | . . . Salvage Created 657 | 143 477 37 Parts 50 | 12 37 1 Haulers Intercepted 2 | . 2 . Recyclers Shooed 1 | . 1 . Parts Field Recycled . | . . . Retrieved Matter . | . . . Parts Self-Destructed 2 | . . 2 Prevented . | . . . Parts Restored . | . . . Kills | -11 -10 -10 ------- Run | Yrd Mat Sub Combat Hostiles Destroyed 12 | . 11 1 Melee 1 | . . 1 Guns 11 | . 11 . Classes Destroyed 7 | 2 4 1 Worker 2 | 1 1 . Tunneler 7 | 6 1 . Hauler 2 | . 2 . Operator 1 | . 1 . Swarmer 6 | . 6 . Grunt 5 | . 5 . Subdweller 1 | . . 1 Best Kill Streak 5 | 4 5 1 Combat Bots Only 5 | . 5 1 Max Kills in Single Turn 1 | 1 1 1 Gunslinging . | . . . Exploded . | . . . Melee 1 | . . 1 Uniques/NPCs Destroyed . | . . . Combat | -11 -10 -10 -------- Run | Yrd Mat Sub Hostile Shots Fired 102 | . 56 46 Missed 21 | . 15 6 Hits 81 | . 41 40 Projectile 81 | . 41 40 Critical Strikes 1 | . . 1 Damage Taken 1309 | . 464 845 Core 256 | . 57 199 Absorbed by Shields . | . . . Regen/Repaired (Parts) 18 | . 18 . Core Remaining (%) 100 | 100 . . Volleys Fired 99 | 37 54 8 Largest 2 | 1 2 2 Hottest 60 | 20 60 40 Shots Fired 161 | 37 108 16 Gun 161 | 37 108 16 Cannon . | . . . Launcher . | . . . Special . | . . . Kinetic 142 | 37 89 16 Thermal . | . . . Explosive . | . . . Electromagnetic 19 | . 19 . Robot Hit Streak 17 | 5 13 17 Robot Miss Streak 5 | 3 5 . Penetration Max . | . . . Secondary Targets . | . . . Shots Hit Robots 122 | 26 69 27 Core Hits 51 | 13 33 5 Critical Kills . | . . . Critical Parts Destroyed 1 | . 1 . Critical Strikes 1 | . 1 . Destroy 1 | . 1 . Melee Attacks 13 | . 2 11 Impact 13 | . 2 11 Slashing . | . . . Piercing . | . . . Sneak Attacks . | . . . Combat Hostiles . | . . . Follow-up Attacks . | . . . Damage Inflicted 1202 | 210 595 397 Guns 924 | 210 595 119 Cannons . | . . . Explosions . | . . . Melee 271 | . . 271 Ramming 7 | . . 7 Kinetic 749 | 210 420 119 Thermal . | . . . Explosive . | . . . Electromagnetic 175 | . 175 . Impact 271 | . . 271 Slashing . | . . . Piercing . | . . . Highest Corruption . | . . . Average Corruption . | . . . Corruption Purged . | . . . Corruption Blocked . | . . . Overload Shots . | . . . Overflow Damage 24 | . . 24 Projectiles . | . . . Explosions . | . . . Melee 24 | . . 24 Knockbacks . | . . . Impact . | . . . Kinetic . | . . . Secondary . | . . . Self-Inflicted Damage 3 | . . 3 Shots . | . . . Rammed 4 | . . 4 Targets Rammed 4 | . . 4 Kicked . | . . . Crushed . | . . . Highest Temperature 88 | . 88 . Average Temperature 26 | . 26 . Received Heat Transfer 213 | . 213 . Siege Activations . | . . . Martial Activations . | . . . Shielding Activations . | . . . Robots Disrupted . | . . . Combat Hostiles . | . . . Robots Corrupted . | . . . Combat Hostiles . | . . . Parts Fried . | . . . Impact Corruptions 1 | . . 1 Robots Melted . | . . . Combat Hostiles . | . . . Parts Melted . | . . . Heat Transferred . | . . . Parts Sabotaged . | . . . Parts Stolen . | . . . Parts Stripped . | . . . Power Chain Reactions . | . . . Alert | -11 -10 -10 ------- Run | Yrd Mat Sub Maximum Alert Level . | . . . Low Security (%) 100 | 100 100 . Level 1 . | . . . Level 2 . | . . . Level 3 . | . . . Level 4 . | . . . Level 5 . | . . . High Security . | . . . Max Security . | . . . Peak Influence 175 | 15 175 . Initial . | . . . Average 42 | 1 52 . Influence Increases 393 | 35 358 . Destroy 0b10 Robot/C 220 | . 220 . Destroy 0b10 Robot/NC 60 | 35 25 . Destroy Leader 54 | . 54 . Successful Hack 13 | . 13 . Disable Machine 15 | . 15 . Destroy Structure 1 | . 1 . Lose Combat Pursuer 30 | . 30 . Influence Decreases 393 | 35 358 . Time Decay 383 | 35 348 . Lost Part 10 | . 10 . Squads Dispatched 2 | . 2 . Investigation 1 | . 1 . Extermination . | . . . Reinforcement 1 | . 1 . Assault . | . . . Garrison . | . . . Intercept . | . . . Searches Triggered . | . . . Construction Impeded . | . . . Haulers Reinforced . | . . . Active Scanning Responses . | . . . Cargo Convoy Interrupts . | . . . Stealth | -11 -10 -10 --------- Run | Yrd Mat Sub Distress Signals 2 | . 2 . Communications Jammed . | . . . Distress Signals . | . . . Times Spotted 27 | . 25 2 Peak Tracking Total 4 | . 4 2 Tactical Retreats 1 | . 1 . Traps | -11 -10 -10 ------- Run | Yrd Mat Sub Traps Triggered 3 | . 3 . Indirectly . | . . . Trap Hack Attempts . | . . . Triggered . | . . . Disarmed . | . . . Reprogrammed . | . . . Reused . | . . . Traps Extracted . | . . . Installed . | . . . Triggered . | . . . Machines | -11 -10 -10 ---------- Run | Yrd Mat Sub Machines Disabled 1 | . 1 . Max in Single Turn 1 | . 1 . Machines Repaired . | . . . Machines Dismantled . | . . . Machines Sabotaged . | . . . Overloaded Fab Kills . | . . . Hacking | -11 -10 -10 --------- Run | Yrd Mat Sub Machines Accessed 7 | . 7 . Terminals 6 | . 6 . Fabricators . | . . . Repair Stations 1 | . 1 . Recycling Units . | . . . Scanalyzers . | . . . Garrison Access . | . . . Total Hacks 12 | . 12 . Successful 5 | . 5 . Failed 7 | . 7 . Catastrophic 3 | . 3 . Database Lockouts . | . . . Manual 8 | . 8 . Terminals 10 | . 10 . Fabricators . | . . . Repair Stations 2 | . 2 . Recycling Units . | . . . Scanalyzers . | . . . Garrison Access . | . . . Terminal Hacks 2 | . 2 . Emergency Access Points 1 | . 1 . Alert Level 1 | . 1 . Fabricator Hacks . | . . . Repair Station Hacks 2 | . 2 . Scan Component 1 | . 1 . Repair 1 | . 1 . Recycling Unit Hacks . | . . . Scanalyzer . | . . . Garrison Access Hacks . | . . . Unauthorized Hacks 1 | . 1 . Terminals 1 | . 1 . Operators 1 | . 1 . Fabricators . | . . . Repair Stations . | . . . Recycling Units . | . . . Scanalyzers . | . . . Garrison Access . | . . . Data Cores Recovered . | . . . Used . | . . . Hacking Detections 3 | . 3 . Full Trace Events 2 | . 2 . Feedback Events . | . . . Feedback Blocked . | . . . Robot Schematics Acquired . | . . . Robots Built . | . . . Authchips . | . . . Time . | . . . Total Robot Build Rating . | . . . Part Schematics Acquired . | . . . Parts Built . | . . . Authchips . | . . . Time . | . . . Total Part Build Rating . | . . . Part Studies Acquired . | . . . Parts Repaired 1 | . 1 . Time 26 | . 26 . Parts Recycled . | . . . Recycled Matter . | . . . Retrieved Matter . | . . . Retrieved Components . | . . . Parts Scanalyzed . | . . . Part Schematics Acquired . | . . . Parts Damaged . | . . . Bothacking | -11 -10 -10 ------------ Run | Yrd Mat Sub Used RIF Installer . | . . . Robots Hacked . | . . . Non-combat . | . . . Combat . | . . . Robot Hacks Applied . | . . . Relay Couplers Released . | . . . Fabnet Peak Effective % . | . . . Robots Rewired . | . . . Allies Hacked . | . . . Hacks Repelled . | . . . Allies | -11 -10 -10 -------- Run | Yrd Mat Sub Total Allies . | . . . Largest Group . | . . . Highest-Rated Group . | . . . Highest-Rated Ally . | . . . Total Orders . | . . . Ally Attacks . | . . . Total Damage . | . . . Kills . | . . . Allies Corrupted . | . . . Allies Melted . | . . . Intel | -11 -10 -10 ------- Run | Yrd Mat Sub Active Infowar (turns) 1128 | 16 1041 71 Seismic 1128 | 16 1041 71 Robot Analysis Total . | . . . Derelict Logs Recovered . | . . . Drone Launches . | . . . Drone Recoveries . | . . . Exploration | -11 -10 -10 ------------- Run | Yrd Mat Sub Turns Passed 1441 | 261 1067 113 Spaces Moved 970 | 104 825 41 Core 13 | 13 . . Treads 4 | . 4 . Legs . | . . . Wheels 953 | 91 821 41 Hover . | . . . Flight . | . . . Fastest Speed 50 | 50 95 100 Average Speed 99 | 93 99 114 Slowest Speed 160 | 100 160 115 Overloaded Moves . | . . . Propulsion Burnouts . | . . . Robots Hopped . | . . . Potential Cave-ins . | . . . Cave-ins Triggered . | . . . Exploration Rate (%) 34 | 5 93 6 Regions Visited 2 Branch Regions 1 Pre-discovered Areas . | . . . Known Exits Taken . | . . . Unknown Exits Taken 2 | 1 1 . Scrap Searched . | . . . Spaces Dug 1 | . 1 . Terrain Destroyed 1 | . 1 . Melee 1 | . 1 . Projectile . | . . . AOE . | . . . Terrain Rammed . | . . . Walls Destroyed . | . . . Machines Disabled . | . . . Actions | -11 -10 -10 --------- Run | Yrd Mat Sub Total 1288 | 234 983 71 Wait 148 | 79 63 6 Move 968 | 103 824 41 Hop . | . . . Pick Up 20 | 8 12 . Fast Attach 12 | 7 5 . Attach 4 | . 3 1 Detach 1 | . 1 . Swap 6 | . 6 . Drop 13 | . 13 . Fire 99 | 37 54 8 Melee 13 | . 2 11 Ram 4 | . . 4 Kick . | . . . Crush . | . . . Escape Stasis . | . . . Rewire . | . . . Trap . | . . . Miscellaneous . | . . . Route ------- -11/Scrapyard -10/Materials (discovered 6 exits: [*Mat x3] / [*Min x2] / [*Sub]) -10/Subcaves History --------- Turn | Location | Event 2 | -11/Scrapyard | Met Revision 17 14 | -11/Scrapyard | Discovered new exit (range 15) 262 | -11/Scrapyard | Entered Materials 309 | -10/Materials | Build established: Mutant 350 | -10/Materials | Discovered new exit (range 5) 515 | -10/Materials | Discovered new exit (range 9) 557 | -10/Materials | Discovered new exit (range 15) 591 | -10/Materials | Repaired Seismic Detector 615 | -10/Materials | Discovered new exit (range 3) 780 | -10/Materials | Discovered new exit (range 11) 984 | -10/Materials | Build established: Scavenger-Mutant 1096 | -10/Materials | Discovered new exit (range 16) 1329 | -10/Materials | Entered Subcaves 1411 | -10/Subcaves | Core integrity fell below 50% 1433 | -10/Subcaves | Core integrity fell below 20% 1442 | -10/Subcaves | Build established: Mutant 1442 | -10/Subcaves | Destroyed by AX-T5K(R) with Subdweller Machine Gun Last Messages --------------- 01209_ K-01 Serf destroyed. 01216_ Acquired Wheel. 01217_ Dropped Lgt. Treads. 01251_ Acquired Lgt. Treads. 01293_ Acquired 12 matter. LOCATION=UNKNOWN AMBIENT_HEAT=-10 GOAL=ESCAPE 01396_ Ion Engine destroyed. 01400_ Seismic Detector destroyed. 01400_ Lgt. Assault Rifle destroyed. 01408_ Lgt. Treads destroyed. 01409_ OG-JYY(R) destroyed. 01412_ Acquired 1 matter. 01418_ Subatomizers dissect the Disposable Heat Sink. 01424_ Com. Wheel destroyed. 01426_ Destroyed Sub. Power Source. 01426_ AX-T5K(R) system corrupted by crushing effect. 01434_ Hammer destroyed. 01435_ Slammed into AX-T5K(R). Map ----- +----------------------------------------------------+ | ?????????????????????????????????????????????????? | | ?????????????????????????????????????????????????? | | ?????????????????????????????????????????????????? | | ?????????????????????????????????????????????????? | | ?????????????????????????????????????????????????? | | ?????????????????????????????????????????????????? | | ?????????????????????????????????????????????????? | | ?????????????????????????????????????????????????? | | ????????????????????????#????????????????????????? | | ????????????????????????"""??????????????????????? | | ????????????????????????"""??????????????????????? | | ??????????????????????#"" "??###??##?####????????? | | ?????????????????????##" ##""### ## ##???????? | | ?????????????? ??????? #???????? | | ?????????????? ??#???""""" """" ##??????? | | ?????????????? " ???""""" "" # #??????? | | ??????????????? " ??""""" """ "#?# #??????? | | ???????????????# ??#"""" " ""#?## #??????? | | ???????????????# ???#""" ""#??## ###????? | | ???????????????# ??## ""#?## ###??? | | ????????????#### ??#" ### ""#### #??? | | ??????????### #### ### # # # #? | | ??????????? ## ## ## # | | ????????????????# ## ## ### ####??? | | ????????????????# R## ##### ##?? #?????? | | ????????????????# @%% #?# #???# #?????? | | ????????????????# ###!####?## #??? ?????? | | ????????????????### #?###????? #??? ????? | | ??????????????????# ##????????# ##??? ## ???? | | ??????????????????# #?????????# #?????#?##??? | | ?????????????????# #?????????# #???????????? | | ?????????????????### #?????????# #???????????? | | ???????????????????# #???????? ???????????? | | ??????????????????? #???????? ???????????? | | ?????????????????? ???????? ???????????? | | ?????????????????? ???????# ???????????? | | ????????????????? ??????? #??????????? | | ???????????????? ?????? #???????????? | | ????????????????? ????????????????????? | | ?????????????????? ### ???????????????????? | | ?????????????????? #??? ????????????????????? | | ??????????????????????? ??????????????????????? | | ?????????????????????????????????????????????????? | | ?????????????????????????????????????????????????? | | ?????????????????????????????????????????????????? | | ?????????????????????????????????????????????????? | | ?????????????????????????????????????????????????? | | ?????????????????????????????????????????????????? | | ?????????????????????????????????????????????????? | | ?????????????????????????????????????????????????? | +----------------------------------------------------+ Best States ------------- Heat Dissipation 25 Energy Generation 10 Energy Capacity 250 Matter Stores 300 Matter Capacity 300 Sight Range 16 Terrain Scan Density 10 Evasion (%) 50 Recoil Reduction 1 Item Schematics ----------------- None Robot Schematics ------------------ None Fabricated ------------ Nothing Repaired ---------- Seismic Detector | 10% | -10/Materials Studied --------- None Alien Tech Used ----------------- None Achievements -------------- You Again Challenges ------------ None Game ------ Seed AlertLegBay Manual? 0 Play Time 00:21:04 Cumulative 48.1 hours Start 2026.01.08 @ 13:04:10 End 2026.01.08 @ 13:29:00 Sessions 1 Manual Loads 0 Difficulty Rogue Special Mode None Game No. 17 Rogue 17 Adventurer 0 Explorer 0 Win Type - Total 1 Types 1/0/0/0/0/0/0/0/0/0 Lore% 16 Gallery% 36 Achievement% 30 Wizard Run 0 Options --------- Layout 0 ASCII 0 Keyboard 1 Movement Arrows Keybinds 0 Fullscreen 1 Font 18/SmallcapsGlow Map View 76x50 Zoom Use 0% Tactical HUD 1 Map Filters NONE Filters NONE Steam 1 RUN: 50ab91ac-aab4-4ba9-9251-845e7260f96b